fUST/lending_fUST_20240208
["ID","MTS","AMOUNT","RATE_DAILY","PERIOD"]
[313470514,1707377438360,-280.0,0.00021465,7]
[313470515,1707377438369,-185.93740982,0.000218,2]
[313470516,1707377438379,-246.11362576,0.000219,2]
[313470517,1707377438389,-166.666666,0.00021918,2]
[313470518,1707377438398,-412.14393997,0.0002197,2]
[313470519,1707377438408,-307.06556549,0.00022,2]
[313470520,1707377438418,-427.31508471,0.00022,2]
[313470521,1707377438428,-155.9815372,0.00022,2]
[313470522,1707377438436,-3981.4674439,0.00022,2]
[313470524,1707377438446,-169.10068,0.0002222,2]
[313470525,1707377438457,-166.666666,0.00022431,2]
[313470526,1707377438465,-169.29307845,0.000225,2]
[313470528,1707377438475,-166.666666,0.00022944,2]
[313470529,1707377438483,-1263.33437611,0.00023,2]
[313470531,1707377438493,-9969.58754808,0.00023,2]
[313470533,1707377438503,-166.666666,0.00023456,2]
[313470534,1707377438512,-391.0,0.00023612,7]
[313470536,1707377438521,-166.666666,0.00023969,2]
[313470538,1707377438529,-412.14393997,0.0002428,2]
[313470540,1707377438538,-166.666666,0.00024482,2]
[313470541,1707377438547,-500.0,0.00024996,2]
[313470543,1707377438556,-500.0,0.00024996,2]
[313470545,1707377438566,-500.0,0.00024996,2]
[313470547,1707377438575,-500.0,0.00024996,2]
[313470548,1707377438583,-500.0,0.00024996,2]
[313470550,1707377438593,-500.0,0.00024996,2]
[313470552,1707377438602,-500.0,0.00024996,2]
[313470554,1707377438611,-500.0,0.00024996,2]
[313470555,1707377438621,-500.0,0.00024996,2]
[313470557,1707377438631,-451.73424992,0.00024996,2]
[313470559,1707377438642,-500.0,0.00024996,2]
[313470561,1707377438651,-500.0,0.00024996,2]
[313470563,1707377438661,-500.0,0.00024996,2]
[313470564,1707377438670,-500.0,0.00024996,2]
[313470566,1707377438679,-633.52871689,0.00024996,2]
[313470568,1707377438688,-500.0,0.00024996,2]
[313470570,1707377438697,-500.0,0.00024996,2]
[313470572,1707377438706,-376.42115194,0.00024996,2]
[313470573,1707377438715,-500.0,0.00024996,2]
[313470575,1707377438724,-500.0,0.00024996,2]
[313470577,1707377438734,-500.0,0.00024996,2]
[313470579,1707377438743,-500.0,0.00024996,2]
[313470580,1707377438752,-500.0,0.00024996,2]
[313470582,1707377438761,-500.0,0.00024996,2]
[313470584,1707377438770,-500.0,0.00024996,2]
[313470586,1707377438779,-330.19927445,0.00024996,2]
[313470588,1707377438788,-500.0,0.00024996,2]
[313470589,1707377438797,-500.0,0.00024996,2]
[313470591,1707377438806,-500.0,0.00024996,2]
[313470593,1707377438815,-500.0,0.00024996,2]
[313470595,1707377438826,-500.0,0.00024996,2]
[313470597,1707377438836,-500.0,0.00024996,2]
[313470599,1707377438845,-500.0,0.00024996,2]
[313470600,1707377438854,-500.0,0.00024996,2]
[313470602,1707377438863,-500.0,0.00024996,2]
[313470604,1707377438873,-500.0,0.00024996,2]
[313470606,1707377438882,-500.0,0.00024996,2]
[313470608,1707377438891,-500.0,0.00024996,2]
[313470609,1707377438900,-500.0,0.00024996,2]
[313470611,1707377438910,-500.0,0.00024996,2]
[313470613,1707377438919,-500.0,0.00024996,2]
[313470615,1707377438928,-500.0,0.00024996,2]
[313470617,1707377438938,-500.0,0.00024996,2]
[313470619,1707377438947,-500.0,0.00024996,2]
[313470620,1707377438956,-500.0,0.00024996,2]
[313470622,1707377438966,-500.0,0.00024996,2]
[313470624,1707377438975,-500.0,0.00024996,2]
[313470626,1707377438985,-500.0,0.00024996,2]
[313470628,1707377438995,-500.0,0.00024996,2]
[313470630,1707377439004,-500.0,0.00024996,2]
[313470632,1707377439013,-500.0,0.00024996,2]
[313470633,1707377439023,-318.89536633,0.00024996,2]
[313470635,1707377439032,-500.0,0.00024996,2]
[313470637,1707377439041,-189.26575045,0.00024996,2]
[313470639,1707377439050,-500.0,0.00024996,2]
[313470641,1707377439059,-500.0,0.00024996,2]
[313470642,1707377439069,-500.0,0.00024996,2]
[313470644,1707377439078,-500.0,0.00024996,2]
[313470646,1707377439087,-500.0,0.00024996,2]
[313470648,1707377439097,-500.0,0.00024996,2]
[313470649,1707377439106,-450.0,0.00024996,2]
[313470651,1707377439115,-500.0,0.00024996,2]
[313470653,1707377439125,-500.0,0.00024996,2]
[313470655,1707377439135,-500.0,0.00024996,2]
[313470657,1707377439144,-500.0,0.00024996,2]
[313470659,1707377439154,-500.0,0.00024996,2]
[313470660,1707377439163,-500.0,0.00024996,2]
[313470662,1707377439172,-500.0,0.00024996,2]
[313470664,1707377439181,-500.0,0.00024996,2]
[313470666,1707377439191,-500.0,0.00024996,2]
[313470668,1707377439200,-500.0,0.00024996,2]
[313470669,1707377439210,-500.0,0.00024996,2]
[313470671,1707377439219,-500.0,0.00024996,2]
[313470673,1707377439228,-500.0,0.00024996,2]
[313470675,1707377439237,-500.0,0.00024996,2]
[313470676,1707377439246,-500.0,0.00024996,2]
[313470678,1707377439256,-500.0,0.00024996,2]
[313470680,1707377439265,-500.0,0.00024996,2]
[313470682,1707377439274,-500.0,0.00024996,2]
[313470692,1707377439368,-500.0,0.00024996,2]
[313470694,1707377439378,-4739.06901527,0.00025,2]
[313470696,1707377439388,-155.07443573,0.00025,2]
[313470698,1707377439397,-7407.43141525,0.00025,2]
[313470700,1707377439406,-6300.94053929,0.00025,2]
[313470702,1707377439416,-193.619591,0.00025119,2]
[313470704,1707377439425,-200.0,0.00025973,7]
[313470705,1707377439433,-200.0,0.00025973,7]
[313470706,1707377439442,-4576.6360526,0.00026,2]
[313470707,1707377439451,-632.73703162,0.00026319,2]
[313470708,1707377439460,-13773.56058904,0.00026411,2]
[313470709,1707377439469,-81515.26950264,0.00026419,2]
[313470710,1707377439478,-5000.0,0.00026419,2]
[313470711,1707377439487,-18639.60733095,0.00026419,2]
[313470712,1707377439496,-3360.66168749,0.00026419,2]
[313470713,1707377439505,-5000.0,0.00026419,2]
[313470714,1707377439514,-1481.13486147,0.00026419,2]
[313470715,1707377439523,-752.9906766,0.00026444,2]
[313470716,1707377439531,-2427.64539795,0.00026444,2]
[313470717,1707377439540,-433.29722982,0.00026468,2]
[313470718,1707377439550,-1000.0,0.00026471,3]
[313470719,1707377439559,-8709.07728965,0.0002658,4]
[313470720,1707377439568,-412.14393997,0.0002659,2]
[313470721,1707377439576,-977.5757834,0.000269,2]
[313470722,1707377439585,-1382.75585323,0.00027,2]
[313470723,1707377439594,-151.0,0.00027211,2]
[313470724,1707377439603,-505.65445012,0.00027397,2]
[313470725,1707377439612,-1725.09,0.00027397,3]
[313470726,1707377439622,-3239.57,0.00027397,3]
[313470727,1707377439631,-2249.7,0.00027397,3]
[313470728,1707377439640,-676.32596288,0.000275,2]
[313470729,1707377439649,-1716.51144437,0.00028,2]
[313470730,1707377439659,-4369.78159121,0.00028,2]
[313470731,1707377439668,-151.0,0.00028005,2]
[313470732,1707377439677,-632.73703159,0.0002805,2]
[313470733,1707377439686,-863.18363882,0.00028656,2]
[313470734,1707377439695,-151.0,0.00028798,2]
[313470735,1707377439704,-412.14393997,0.000289,2]
[313470736,1707377439713,-56321.64049573,0.00029,2]
[313470737,1707377439722,-351.92928518,0.00029,10]
[313470738,1707377439731,-578.0,0.000291,2]
[313470739,1707377439740,-25048.96314183,0.00029565,5]
[313470913,1707377442977,-500.0,0.00024996,2]
[313470915,1707377442987,-500.0,0.00024996,2]
[313470917,1707377442995,-174.00739868,0.00024996,2]
[313470919,1707377443004,-175.86714538,0.00029563,5]
[313470997,1707377445949,-1874.75,0.00029555,3]
[313470998,1707377445960,-11151.09947206,0.00029563,5]
[313470999,1707377445972,-1023.37052794,0.00029563,5]
[313471081,1707377580257,155.07288426,0.00017722,3]
[313471082,1707377730761,193.6195914,0.00016716,2]
[313471168,1707378638260,-155.07598723,0.00017012,2]
[313471170,1707378638270,-175.72920133,0.00017013,2]
[313471171,1707378638278,-185.0083529,0.00017014,2]
[313471172,1707378638287,-820.86834729,0.00017014,2]
[313471173,1707378638296,-1167.31811125,0.00017014,2]
[313471174,1707378638314,-1645.05716016,0.00017014,2]
[313471175,1707378638323,-167.52109951,0.00017015,2]
[313471176,1707378638333,-243.85623125,0.00017015,2]
[313471177,1707378638342,-167.19218389,0.00017016,2]
[313471178,1707378638351,-159.31275782,0.00017016,2]
[313471179,1707378638360,-181.54986875,0.00017016,2]
[313471180,1707378638369,-3756.52064681,0.00017016,2]
[313471181,1707378638378,-19138.64568776,0.00017017,2]
[313471182,1707378638387,-20933.53573456,0.00017018,2]
[313471183,1707378638396,-78070.92535031,0.00017019,2]
[313471193,1707378641316,-214.08706983,0.00017012,2]
[313471194,1707378641326,-542.09293017,0.00017013,2]
[313471198,1707378643713,-2280.52434074,0.00017013,2]
[313471199,1707378643722,-5026.26665306,0.00017019,2]
[313471200,1707378643734,-3635.94593381,0.00017019,2]
[313471208,1707378646165,-1426.58244768,0.00017019,2]
[313471209,1707378646176,-729.81146932,0.00017019,2]
[313471210,1707378646188,-22433.55192642,0.00017019,2]
[313471211,1707378646198,-2110.10399171,0.0001703,2]
[313471212,1707378646207,-390.08785472,0.00017043,2]
[313471213,1707378646216,-13773.56058904,0.00017718,2]
[313471214,1707378646224,-11736.20557969,0.00017728,2]
[313471215,1707378646233,-200.0,0.00018729,2]
[313471216,1707378646242,-169.10068,0.00019178,2]
[313471217,1707378646250,-390.08785471,0.00019607,2]
[313471218,1707378646259,-680.94052688,0.0002,2]
[313471219,1707378646269,-1201.92575629,0.0002,2]
[313471220,1707378646277,-24900.0,0.00020222,2]
[313471221,1707378646286,-200.0,0.00020601,2]
[313471222,1707378646294,-169.051891,0.00021918,2]
[313471223,1707378646303,-390.08785471,0.0002217,2]
[313471224,1707378646312,-1263.33437611,0.00023,2]
[313471225,1707378646321,-169.051891,0.00024482,2]
[313471226,1707378646330,-390.08785471,0.00024734,2]
[313471227,1707378646338,-156.08332335,0.00024995,2]
[313471228,1707378646347,-1865.32745402,0.00025,3]
[313471229,1707378646356,-7407.43141525,0.00025,2]
[313471230,1707378646365,-155.07288426,0.00025,2]
[313471231,1707378646374,-6300.94053929,0.00025,2]
[313471232,1707378646383,-4739.06901527,0.00025,2]
[313471233,1707378646392,-284.28769992,0.0002539,2]
[313471234,1707378646401,-4576.6360526,0.00026,2]
[313471235,1707378646411,-155.07288426,0.00026086,4]
[313471236,1707378646420,-666.89273529,0.00026319,2]
[313471237,1707378646429,-500.0,0.00026415,2]
[313471238,1707378646439,-500.0,0.00026415,2]
[313471239,1707378646448,-181.50319077,0.00026415,2]
[313471240,1707378646457,-500.0,0.00026415,2]
[313471241,1707378646467,-500.0,0.00026415,2]
[313471242,1707378646475,-500.0,0.00026415,2]
[313471243,1707378646485,-500.0,0.00026415,2]
[313471244,1707378646494,-500.0,0.00026415,2]
[313471245,1707378646503,-564.91966224,0.00026415,2]
[313471246,1707378646512,-500.0,0.00026415,2]
[313471247,1707378646521,-500.0,0.00026415,2]
[313471248,1707378646530,-425.66074786,0.00026415,2]
[313471249,1707378646539,-500.0,0.00026415,2]
[313471250,1707378646548,-500.0,0.00026415,2]
[313471251,1707378646557,-500.0,0.00026415,2]
[313471252,1707378646566,-500.0,0.00026415,2]
[313471253,1707378646575,-500.0,0.00026415,2]
[313471254,1707378646584,-500.0,0.00026415,2]
[313471255,1707378646592,-500.0,0.00026415,2]
[313471256,1707378646602,-500.0,0.00026415,2]
[313471257,1707378646611,-500.0,0.00026415,2]
[313471258,1707378646621,-500.0,0.00026415,2]
[313471259,1707378646629,-500.0,0.00026415,2]
[313471260,1707378646639,-454.14348411,0.00026415,2]
[313471261,1707378646648,-500.0,0.00026415,2]
[313471262,1707378646658,-500.0,0.00026415,2]
[313471263,1707378646706,-500.0,0.00026415,2]
[313471264,1707378646715,-500.0,0.00026415,2]
[313471265,1707378646724,-500.0,0.00026415,2]
[313471266,1707378646733,-500.0,0.00026415,2]
[313471267,1707378646743,-500.0,0.00026415,2]
[313471268,1707378646753,-500.0,0.00026415,2]
[313471269,1707378646762,-500.0,0.00026415,2]
[313471270,1707378646771,-500.0,0.00026415,2]
[313471271,1707378646780,-500.0,0.00026415,2]
[313471272,1707378646790,-500.0,0.00026415,2]
[313471273,1707378646799,-409.88374037,0.00026415,2]
[313471274,1707378646808,-500.0,0.00026415,2]
[313471275,1707378646817,-500.0,0.00026415,2]
[313471276,1707378646826,-500.0,0.00026415,2]
[313471277,1707378646835,-500.0,0.00026415,2]
[313471278,1707378646844,-500.0,0.00026415,2]
[313471279,1707378646853,-500.0,0.00026415,2]
[313471280,1707378646862,-500.0,0.00026415,2]
[313471281,1707378646871,-500.0,0.00026415,2]
[313471282,1707378646880,-500.0,0.00026415,2]
[313471283,1707378646890,-500.0,0.00026415,2]
[313471284,1707378646899,-500.0,0.00026415,2]
[313471285,1707378646909,-500.0,0.00026415,2]
[313471286,1707378646918,-500.0,0.00026415,2]
[313471287,1707378647014,-500.0,0.00026415,2]
[313471288,1707378647024,-500.0,0.00026415,2]
[313471289,1707378647033,-500.0,0.00026415,2]
[313471290,1707378647043,-500.0,0.00026415,2]
[313471291,1707378647052,-500.0,0.00026415,2]
[313471292,1707378647061,-500.0,0.00026415,2]
[313471293,1707378647071,-500.0,0.00026415,2]
[313471294,1707378647080,-500.0,0.00026415,2]
[313471295,1707378647090,-500.0,0.00026415,2]
[313471296,1707378647099,-500.0,0.00026415,2]
[313471297,1707378647108,-500.0,0.00026415,2]
[313471298,1707378647118,-500.0,0.00026415,2]
[313471299,1707378647127,-500.0,0.00026415,2]
[313471300,1707378647136,-500.0,0.00026415,2]
[313471301,1707378647146,-500.0,0.00026415,2]
[313471302,1707378647155,-500.0,0.00026415,2]
[313471303,1707378647165,-500.0,0.00026415,2]
[313471304,1707378647178,-500.0,0.00026415,2]
[313471305,1707378647187,-500.0,0.00026415,2]
[313471306,1707378647196,-500.0,0.00026415,2]
[313471307,1707378647207,-500.0,0.00026415,2]
[313471308,1707378647216,-543.98011645,0.00026415,2]
[313471309,1707378647225,-500.0,0.00026415,2]
[313471310,1707378647235,-500.0,0.00026415,2]
[313471311,1707378647245,-500.0,0.00026415,2]
[313471312,1707378647254,-500.0,0.00026415,2]
[313471313,1707378647263,-34280.01708326,0.00026416,2]
[313471314,1707378647272,-5000.0,0.00026419,2]
[313471315,1707378647281,-5000.0,0.00026419,2]
[313471316,1707378647292,-50000.0,0.00026419,2]
[313471317,1707378647301,-83376.95510527,0.00026419,2]
[313471318,1707378647314,-282.82346354,0.00026419,2]
[313471389,1707379832324,-590.15719574,0.00017254,2]
[313471390,1707379832333,-90.41660425,0.00017254,2]
[313471429,1707379838480,-1856.95871445,0.00017254,2]
[313471432,1707379838576,-155.07288426,0.00017254,2]
[313471433,1707379838586,-155.07288426,0.00017255,2]
[313471434,1707379838595,-7983.26892551,0.00017255,2]
[313471435,1707379838604,-167.19218389,0.00017256,2]
[313471436,1707379838613,-175.72920133,0.00017256,2]
[313471437,1707379838622,-167.52109951,0.00017256,2]
[313471438,1707379838631,-1688.20558013,0.00017256,2]
[313471439,1707379838641,-185.0083529,0.00017257,2]
[313471440,1707379838650,-155.07288426,0.00017258,2]
[313471441,1707379838659,-261.88794378,0.00017258,2]
[313471442,1707379838668,-557.19545546,0.00017259,2]
[313471443,1707379838677,-288.7951024,0.0001726,2]
[313471444,1707379838688,-88099.64775245,0.00017473,2]
[313471445,1707379838700,-23223.43602815,0.00017473,2]
[313471446,1707379838710,-19922.00560303,0.00017474,2]
[313471447,1707379838719,-83937.39539652,0.00017474,2]
[313471448,1707379838728,-2110.10399171,0.00017474,2]
[313471449,1707379838737,-375.905843,0.00017474,2]
[313471450,1707379838747,-19138.64568776,0.00017475,2]
[313471451,1707379838756,-37068.7030693,0.00017476,2]
[313471452,1707379838765,-24900.0,0.0001748,2]
[313471453,1707379838774,-184.003295,0.00017628,2]
[313471454,1707379838784,-5854.11087692,0.00018,2]
[313471455,1707379838793,-195.04392736,0.0001841,2]
[313471456,1707379838803,-673.60677825,0.000185,2]
[313471457,1707379838812,-17462.70058524,0.00018505,2]
[313471458,1707379838822,-225.98437194,0.00018505,2]
[313471459,1707379838831,-459.3621972,0.00018505,2]
[313471460,1707379838840,-620.65905552,0.00018505,2]
[313471461,1707379838849,-155.53130889,0.00018505,2]
[313471462,1707379838858,-2462.99104446,0.00018506,2]
[313471463,1707379838867,-155.10081553,0.00018506,2]
[313471464,1707379838877,-39314.2409186,0.00018514,2]
[313471465,1707379838886,-169.594842,0.00019178,2]
[313471466,1707379838895,-169.10068,0.00019178,2]
[313471467,1707379838905,-1201.92575629,0.0002,2]
[313471468,1707379838914,-680.94052688,0.0002,2]
[313471469,1707379838923,-155.11323266,0.0002,2]
[313471470,1707379838932,-155.07288426,0.0002,2]
[313471471,1707379838943,-156.12007282,0.0002,2]
[313471472,1707379838952,-155.07288426,0.0002,2]
[313471473,1707379838961,-200.0,0.0002,2]
[313471474,1707379838970,-200.0,0.00020351,2]
[313471475,1707379838980,-475.71,0.00020735,2]
[313471476,1707379838990,-500.0,0.00020822,2]
[313471477,1707379838999,-500.0,0.00020822,2]
[313471478,1707379839008,-500.0,0.00020822,2]
[313471479,1707379839017,-500.0,0.00020822,2]
[313471480,1707379839028,-500.0,0.00020822,2]
[313471481,1707379839037,-500.0,0.00020822,2]
[313471482,1707379839046,-500.0,0.00020822,2]
[313471483,1707379839055,-500.0,0.00020822,2]
[313471484,1707379839065,-500.0,0.00020822,2]
[313471485,1707379839074,-500.0,0.00020822,2]
[313471486,1707379839083,-500.0,0.00020822,2]
[313471487,1707379839092,-500.0,0.00020822,2]
[313471488,1707379839101,-451.73424992,0.00020822,2]
[313471489,1707379839110,-500.0,0.00020822,2]
[313471490,1707379839119,-500.0,0.00020822,2]
[313471491,1707379839128,-330.19927445,0.00020822,2]
[313471492,1707379839137,-500.0,0.00020822,2]
[313471493,1707379839146,-500.0,0.00020822,2]
[313471494,1707379839155,-500.0,0.00020822,2]
[313471495,1707379839164,-500.0,0.00020822,2]
[313471496,1707379839173,-500.0,0.00020822,2]
[313471497,1707379839182,-500.0,0.00020822,2]
[313471498,1707379839192,-500.0,0.00020822,2]
[313471499,1707379839201,-638.77903675,0.00020822,2]
[313471500,1707379839209,-500.0,0.00020822,2]
[313471501,1707379839219,-500.0,0.00020822,2]
[313471502,1707379839228,-470.1758452,0.00020822,2]
[313471503,1707379839237,-500.0,0.00020822,2]
[313471504,1707379839246,-500.0,0.00020822,2]
[313471505,1707379839255,-499.81236005,0.00020822,2]
[313471506,1707379839264,-500.0,0.00020822,2]
[313471507,1707379839274,-500.0,0.00020822,2]
[313471508,1707379839284,-500.0,0.00020822,2]
[313471509,1707379839293,-500.0,0.00020822,2]
[313471510,1707379839302,-500.0,0.00020822,2]
[313471511,1707379839311,-500.0,0.00020822,2]
[313471512,1707379839320,-500.0,0.00020822,2]
[313471513,1707379839329,-500.0,0.00020822,2]
[313471514,1707379839339,-500.0,0.00020822,2]
[313471515,1707379839348,-500.0,0.00020822,2]
[313471516,1707379839357,-500.0,0.00020822,2]
[313471517,1707379839366,-500.0,0.00020822,2]
[313471518,1707379839375,-500.0,0.00020822,2]
[313471519,1707379839384,-500.0,0.00020822,2]
[313471520,1707379839393,-500.0,0.00020822,2]
[313471521,1707379839402,-500.0,0.00020822,2]
[313471522,1707379839411,-500.0,0.00020822,2]
[313471523,1707379839421,-500.0,0.00020822,2]
[313471524,1707379839431,-500.0,0.00020822,2]
[313471525,1707379839442,-500.0,0.00020822,2]
[313471526,1707379839451,-340.98837403,0.00020822,2]
[313471527,1707379839460,-500.0,0.00020822,2]
[313471528,1707379839470,-500.0,0.00020822,2]
[313471529,1707379839479,-500.0,0.00020822,2]
[313471530,1707379839488,-500.0,0.00020822,2]
[313471531,1707379839497,-500.0,0.00020822,2]
[313471532,1707379839507,-500.0,0.00020822,2]
[313471533,1707379839516,-500.0,0.00020822,2]
[313471534,1707379839525,-500.0,0.00020822,2]
[313471535,1707379839534,-500.0,0.00020822,2]
[313471536,1707379839543,-500.0,0.00020822,2]
[313471537,1707379839553,-239.35762622,0.00020822,2]
[313471538,1707379839563,-500.0,0.00020822,2]
[313471539,1707379839572,-500.0,0.00020822,2]
[313471540,1707379839583,-500.0,0.00020822,2]
[313471541,1707379839593,-500.0,0.00020822,2]
[313471542,1707379839602,-500.0,0.00020822,2]
[313471543,1707379839612,-500.0,0.00020822,2]
[313471544,1707379839621,-500.0,0.00020822,2]
[313471545,1707379839632,-500.0,0.00020822,2]
[313471546,1707379839644,-500.0,0.00020822,2]
[313471547,1707379839654,-500.0,0.00020822,2]
[313471548,1707379839663,-500.0,0.00020822,2]
[313471549,1707379839672,-500.0,0.00020822,2]
[313471550,1707379839683,-500.0,0.00020822,2]
[313471551,1707379839692,-500.0,0.00020822,2]
[313471552,1707379839702,-500.0,0.00020822,2]
[313471553,1707379839711,-500.0,0.00020822,2]
[313471554,1707379839720,-500.0,0.00020822,2]
[313471555,1707379839729,-500.0,0.00020822,2]
[313471556,1707379839738,-500.0,0.00020822,2]
[313471557,1707379839747,-630.94359501,0.00020896,2]
[313471558,1707379839755,-13882.36574231,0.00021,2]
[313471559,1707379839765,-9302.99266813,0.00021,2]
[313471560,1707379839774,-427.31508471,0.00022,2]
[313471561,1707379839783,-326.48350937,0.00022,2]
[313471562,1707379839793,-3981.4674439,0.00022,2]
[313471563,1707379839802,-155.9815372,0.00022,2]
[313471564,1707379839812,-280.0,0.00022386,7]
[313471565,1707379839821,-169.29307845,0.000225,2]
[313471566,1707379839830,-1263.33437611,0.00023,2]
[313471567,1707379839839,-9969.58754808,0.00023,2]
[313471568,1707379839848,-630.943595,0.00023008,2]
[313471569,1707379839859,-1047.54768529,0.00024319,2]
[313471570,1707379839869,-391.0,0.00024624,7]
[313471571,1707379839879,-4739.06901527,0.00025,2]
[313471572,1707379839889,-7407.43141525,0.00025,2]
[313471573,1707379839898,-155.07598723,0.00025,2]
[313471574,1707379839907,-630.943595,0.00025119,2]
[313471575,1707379839917,-185.93740982,0.00025294,2]
[313471576,1707379839926,-820.86834729,0.00025393,2]
[313471577,1707379839935,-151.0,0.00025784,2]
[313471578,1707379839944,-242.07646652,0.00026,2]
[313471579,1707379839954,-195.04392735,0.000263,2]
[313471580,1707379839963,-500.0,0.00026314,2]
[313471581,1707379839972,-500.0,0.00026314,2]
[313471582,1707379839985,-626.79947259,0.00026314,2]
[313471583,1707379839996,-500.0,0.00026314,2]
[313471584,1707379840006,-198.0198743,0.00026314,2]
[313471585,1707379840015,-500.0,0.00026314,2]
[313471586,1707379840026,-500.0,0.00026314,2]
[313471587,1707379840035,-254.26704363,0.00026314,2]
[313471588,1707379840044,-500.0,0.00026314,2]
[313471589,1707379840054,-338.79244311,0.00026314,2]
[313471590,1707379840063,-250.0,0.00026314,2]
[313471591,1707379840072,-500.0,0.00026314,2]
[313471592,1707379840081,-500.0,0.00026314,2]
[313471593,1707379840090,-398.88215745,0.00026314,2]
[313471594,1707379840099,-500.0,0.00026314,2]
[313471595,1707379840108,-500.0,0.00026314,2]
[313471596,1707379840117,-500.0,0.00026314,2]
[313471597,1707379840127,-600.0,0.00026314,2]
[313471598,1707379840136,-500.0,0.00026314,2]
[313471599,1707379840145,-500.0,0.00026314,2]
[313471600,1707379840155,-553.12738497,0.00026314,2]
[313471601,1707379840164,-317.3156001,0.00026314,2]
[313471602,1707379840173,-500.0,0.00026314,2]
[313471603,1707379840183,-151.0,0.00026315,2]
[313471604,1707379840195,-151.0,0.00026315,2]
[313471605,1707379840204,-151.0,0.00026315,2]
[313471606,1707379840214,-231.263188,0.00026315,2]
[313471607,1707379840222,-151.0,0.00026315,2]
[313471608,1707379840231,-270.345041,0.00026315,2]
[313471609,1707379840240,-270.345041,0.00026315,2]
[313471610,1707379840249,-5195.639304,0.00026315,2]
[313471611,1707379840258,-5195.639304,0.00026315,2]
[313471612,1707379840267,-92469.08056853,0.00026315,2]
[313471662,1707379845641,-709.37597087,0.00026314,2]
[313471664,1707379845650,-13077.14168613,0.00026315,2]
[313471666,1707379845663,-3421.81370562,0.00026315,2]
[313471668,1707379845674,-5978.91557047,0.00026315,2]
[313471670,1707379845686,-8239.53357952,0.00026315,2]
[313471672,1707379845697,-8890.70797669,0.00026315,2]
[313471717,1707379846365,-2485.54747871,0.00026315,2]
[313471718,1707379846376,-11283.60000035,0.00026315,2]
[313471837,1707380976946,1638.3538228,0.00016148,2]
[313471856,1707381038535,-563.21509038,0.0001714,2]
[313471857,1707381038544,-2836.78490962,0.0001714,2]
[313471859,1707381038650,-919.73573719,0.0001714,2]
[313471860,1707381038660,-20933.53573456,0.0001714,2]
[313471861,1707381038669,-673.60677825,0.00017141,2]
[313471862,1707381038679,-19922.00560303,0.00017141,2]
[313471863,1707381038688,-83937.39539652,0.00017141,2]
[313471864,1707381038698,-820.86834729,0.00017142,2]
[313471865,1707381038708,-111323.0837806,0.00017142,2]
[313471866,1707381038719,-19138.64568776,0.00017143,2]
[313471867,1707381038729,-156.20177159,0.00017148,2]
[313471868,1707381038741,-375.905843,0.00017149,2]
[313471869,1707381038750,-2110.10399171,0.0001715,2]
[313471870,1707381038759,-37068.7030693,0.0001715,2]
[313471871,1707381038768,-39314.2409186,0.00017152,2]
[313471872,1707381038778,-5854.11087692,0.00018,2]
[313471873,1707381038788,-242.87514693,0.00018051,2]
[313471874,1707381038797,-155.10081553,0.00018151,2]
[313471875,1707381038807,-17462.70058524,0.00018151,2]
[313471876,1707381038817,-620.65905552,0.00018152,2]
[313471877,1707381038826,-155.53130889,0.00018152,2]
[313471878,1707381038837,-459.3621972,0.00018152,2]
[313471879,1707381038846,-225.98437194,0.00018152,2]
[313471880,1707381038855,-2462.99104446,0.00018152,2]
[313471881,1707381038865,-24900.0,0.00018154,2]
[313471882,1707381038875,-200.0,0.00018864,2]